Workbook

Sheet Electricité
A1: Nom | B1: Consomation W/h | C1: W/jour | D1: Prix jour | E1: Prix/an
A2: Pompe remonté | B2: 45 | C2: =B2*24 -> 1080 | D2: =$C$9*(C2/1000) -> 0.1404 | E2: =D2*365 -> 51.246
A3: Ecumeur | B3: 13 | C3: =B3*24 -> 312 | D3: =$C$9*(C3/1000) -> 0.04056 | E3: =D3*365 -> 14.8044
A4: Brassage | B4: =6*2+2.5*2 -> 17 | C4: =B4*24 -> 408 | D4: 0.05304 | E4: 19.3596
A5: Eclairage | B5: =17*5.4 -> 91.8 | C5: =B5*12 -> 1101.6 | D5: 0.143208 | E5: 52.27092
A6: Chauffage/refroidisement | B6: 100 | C6: =B6*24 -> 2400 | D6: 0.312 | E6: 113.88
A7: Total | B7: =SUM(B2:B6) -> 266.8 | C7: =SUM(C2:C6) -> 5301.6 | D7: =$C$9*(C7/1000) -> 0.689208 | E7: 251.56092
B9: Prix edf Kw/h | C9: 0.13

Sheet Nourriture

Sheet Sel+eau
C1: Quantité Osmoser | D1: eau connsomer/mois | E1: Cout/mois
B2: Changement d'eau | C2: =250*10% -> 25 | D2: =C2*4 -> 100 | E2: =D2*(3.7/1000) -> 0.37
B3: Evaporation | C3: =250*1%*30 -> 75 | D3: =C3*4 -> 300 | E3: =D3*(3.7/1000) -> 1.11
B4: Sel | D4: =C2*38/1000 -> 0.95 | E4: =D4*(25/10) -> 2.375
E5: =SUM(E2:E4) -> 3.855
